fUSD/lending_fUSD_20240521
["ID","MTS","AMOUNT","RATE_DAILY","PERIOD"]
[327600141,1716249603248,150.0,0.00013973,2]
[327600142,1716249603451,282.62961632,0.00013973,2]
[327600143,1716249935751,236.25,0.00013973,2]
[327600144,1716249943122,-155.0,0.00017158,2]
[327600145,1716249943143,-344.46064824,0.00017158,2]
[327600146,1716249943162,-154.00800825,0.00017159,2]
[327600147,1716249943181,-526.64483378,0.00017259,2]
[327600148,1716249943200,-1556.16850836,0.00019899,2]
[327600149,1716249943220,-3278.7239758,0.00019899,2]
[327600150,1716249943240,-2215.56592161,0.00019899,2]
[327600151,1716249943259,-155.0,0.00019997,2]
[327600152,1716249943277,-316.54159119,0.00019998,2]
[327600153,1716249943298,-155.0,0.00019998,2]
[327600154,1716249943317,-259.8,0.00019998,2]
[327600155,1716249943337,-155.0,0.00019998,2]
[327600156,1716249943356,-176.23597455,0.00019998,2]
[327600157,1716249943379,-194.881765,0.00019998,2]
[327600158,1716249943399,-155.0,0.00019998,2]
[327600159,1716249943422,-155.0,0.00019998,2]
[327600160,1716249943442,-17468.78336426,0.00019998,2]
[327600161,1716249943461,-3311.7315583,0.00019998,2]
[327600162,1716249943482,-499.99,0.00019998,2]
[327600163,1716249943501,-999.99,0.00019998,2]
[327600164,1716249943521,-1093.52382414,0.00019998,5]
[327600165,1716249943541,-1093.52382414,0.00019998,5]
[327600166,1716249943562,-1093.52382414,0.00019998,5]
[327600167,1716249943581,-2221.6315313,0.00019999,2]
[327600168,1716249943601,-4744.12068918,0.00019999,2]
[327600172,1716250025099,-204.38010387,0.00019998,2]
[327600173,1716250025121,-155.3685897,0.00019998,2]
[327600174,1716250025147,-38771.55620643,0.00019999,2]
[327600175,1716250026106,-13592.34143044,0.00019999,2]
[327600176,1716250032138,-6826.78536973,0.00019999,2]
[327600177,1716250034103,-4062.8346885,0.00019999,2]
[327600178,1716250053159,-119101.93583548,0.00019999,2]
[327600180,1716250155551,-428.48017839,0.00017259,2]
[327600181,1716250155578,-1400.55165747,0.00019899,2]
[327600182,1716250155598,-155.0,0.00019997,2]
[327600183,1716250155620,-325.83071648,0.00019998,2]
[327600184,1716250155641,-30817.55144766,0.00019999,2]
[327600185,1716250163096,-107538.97403208,0.00019999,2]
[327600186,1716250169108,-293.34245469,0.00019998,2]
[327600187,1716250169131,-3649.83514531,0.00019999,2]
[327600226,1716250231938,-457.41762964,0.00019999,2]
[327600227,1716250231950,-324.72797521,0.00019999,2]
[327600228,1716250231973,-4e-08,0.00019999,2]
[327600229,1716250231984,-2351.48910407,0.00019999,2]
[327600230,1716250231996,-6193.99777999,0.00019999,2]
[327600231,1716250232007,-5902.51031461,0.00019999,2]
[327600232,1716250232031,-1000.0,0.00019999,2]
[327600233,1716250232043,-3064.60664569,0.00019999,2]
[327600234,1716250232055,-9394.66720854,0.00019999,2]
[327600235,1716250232067,-3649.70912852,0.00019999,2]
[327600236,1716250232079,-9025.58191322,0.00019999,2]
[327600237,1716250232090,-2291.08562381,0.00019999,2]
[327600238,1716250232101,-854.70609405,0.00019999,2]
[327600239,1716250232126,-10076.94638976,0.00019999,2]
[327600240,1716250232137,-904.96532417,0.00019999,2]
[327600241,1716250232149,-357.46371413,0.00019999,2]
[327600242,1716250232161,-2400.0,0.00019999,2]
[327600243,1716250232173,-55310.11213868,0.00019999,2]
[327600244,1716250232185,-331.5,0.00019999,2]
[327600245,1716250232196,-1381.95190557,0.00019999,2]
[327600246,1716250232208,-4830.43984845,0.00019999,2]
[327600247,1716250232219,-6018.32790803,0.00019999,2]
[327600248,1716250232243,-854.16488114,0.00019999,2]
[327600249,1716250232255,-464.47486671,0.00019999,2]
[327600250,1716250232267,-1132.38722525,0.00019999,2]
[327600251,1716250232279,-2373.05450546,0.00019999,2]
[327600252,1716250232290,-1966.22875406,0.00019999,2]
[327600253,1716250232301,-6438.08321885,0.00019999,2]
[327600254,1716250232313,-925.97142572,0.00019999,2]
[327600255,1716250232325,-1666.21666469,0.00019999,2]
[327600256,1716250232337,-741.8811006,0.00019999,2]
[327600258,1716250232348,-1224.31720139,0.00019999,2]
[327600259,1716250232361,-833.80448237,0.00019999,2]
[327600260,1716250232372,-1627.23699014,0.00019999,2]
[327600261,1716250232383,-376.2556118,0.00019999,2]
[327600262,1716250232395,-827.62713501,0.00019999,2]
[327600263,1716250232410,-65917.63943423,0.00019999,2]
[327600264,1716250232420,-151.89,0.00019999,2]
[327600265,1716250232429,-500.0,0.00019999,2]
[327600266,1716250232439,-7819.2146,0.0002,2]
[327600267,1716250232448,-236.25,0.00020447,2]
[327600268,1716250232458,-157.85,0.00020918,2]
[327600269,1716250232468,-4903.114596,0.00021,2]
[327600270,1716250232477,-152.21,0.00022004,2]
[327600271,1716250232487,-301.2,0.00022048,2]
[327600272,1716250232501,-500.0,0.00022048,2]
[327600273,1716250232511,-357.69,0.00022074,2]
[327600274,1716250232520,-167.67,0.00022119,2]
[327600275,1716250232530,-1400.55165745,0.00022121,2]
[327600276,1716250232539,-250.0,0.00022183,2]
[327600277,1716250232549,-2000.0,0.00022268,2]
[327600278,1716250232559,-200.0,0.00022268,2]
[327600279,1716250232571,-200.0,0.00022527,2]
[327600280,1716250232585,-239.77,0.00022538,2]
[327600281,1716250232595,-400.0,0.00022577,2]
[327600282,1716250232604,-702.28,0.00022699,2]
[327600283,1716250232616,-244.31,0.00022723,2]
[327600284,1716250232626,-600.0,0.00023463,2]
[327600285,1716250232635,-157.85,0.00023785,2]
[327600286,1716250232645,-1400.55165745,0.00024344,2]
[327600287,1716250232655,-250.0,0.00024658,2]
[327600288,1716250232664,-301.2,0.00024788,2]
[327600289,1716250232673,-180.0,0.00024861,2]
[327600290,1716250232683,-1000.0,0.000249,2]
[327600291,1716250232692,-187.3569466,0.000249,2]
[327600292,1716250232701,-14558.60369469,0.000249,2]
[327600293,1716250232710,-160.84571028,0.000249,2]
[327600294,1716250232719,-176.10875721,0.000249,2]
[327600295,1716250232728,-800.0,0.00024986,2]
[327600296,1716250232738,-215.0593734,0.0002499,2]
[327600297,1716250232747,-2377.62167822,0.00024998,2]
[327600298,1716250232757,-472.25625666,0.00024998,2]
[327600299,1716250232768,-1093.52382416,0.00024999,10]
[327600300,1716250232778,-653.35815421,0.00025,2]
[327600301,1716250232788,-52623.89752859,0.00025,2]
[327600302,1716250232800,-308.68743525,0.00025,2]
[327600303,1716250232811,-2197.83270384,0.00025,2]
[327600304,1716250232822,-2335.98145631,0.00025,2]
[327600305,1716250232841,-2456.09841182,0.00025,2]
[327600306,1716250232852,-1130741.65292009,0.00025,2]
[327600307,1716250232867,-31420.96678108,0.00025,2]
[327600308,1716250232877,-21584.95682334,0.00025,2]
[327600309,1716250232888,-50044.26308057,0.00025,2]
[327600310,1716250232899,-5479.2679418,0.00025,2]
[327600414,1716250238009,-396.31325168,0.00022665,2]
[327600415,1716250238022,-4348.96674832,0.00022665,2]
[327600416,1716250238032,-32806.86774827,0.00025,2]
[327600417,1716250238042,-224.21566957,0.00025,2]
[327600418,1716250238052,-155.0,0.00025,2]
[327600419,1716250238062,-200.0,0.00025068,2]
[327600420,1716250238072,-1198.64768723,0.00025094,2]
[327600421,1716250238082,-400.0,0.00025399,2]
[327600422,1716250238092,-988.0,0.00026027,2]
[327600423,1716250238102,-165.5,0.00026219,2]
[327600424,1716250238112,-14558.60369467,0.00026264,2]
[327600425,1716250238123,-600.0,0.00026396,2]
[327600426,1716250238133,-1400.55165745,0.00026566,2]
[327600427,1716250238142,-157.85,0.00026653,2]
[327600428,1716250238151,-236.25,0.00026921,2]
[327600429,1716250238161,-804.75282659,0.0002739,2]
[327600430,1716250238171,-988.0,0.00027397,4]
[327600431,1716250238182,-301.2,0.00027527,2]
[327600432,1716250238192,-14558.60369467,0.00027627,2]
[327600433,1716250238202,-400.0,0.00028221,2]
[327600434,1716250238212,-4658.0,0.000286,4]
[327600435,1716250238222,-988.0,0.00028767,6]
[327600436,1716250238233,-1400.55165745,0.00028788,2]
[327600437,1716250238242,-150.5,0.0002897,15]
[327600438,1716250238252,-150.5,0.0002898,15]
[327600439,1716250238263,-12025.0,0.00028986,4]
[327600440,1716250238273,-150.5,0.0002899,15]
[327600441,1716250238283,-14558.60369467,0.00028991,2]
[327600442,1716250238293,-59560.48528251,0.00029,2]
[327600443,1716250238322,-450.89332225,0.00029,2]
[327600444,1716250238335,-1363.39024112,0.00029,2]
[327600449,1716250238396,-14695.89152165,0.00029,2]
[327600455,1716250238445,-18648.48699247,0.00029,2]
[327600458,1716250238457,-978.08097491,0.00029,2]
[327600462,1716250238506,-1000.87220434,0.00029,2]
[327600463,1716250238523,-1453.85621766,0.00029,2]
[327600464,1716250238626,-18438.86976096,0.00029,2]
[327600465,1716250238638,-271.70127151,0.00029,2]
[327600466,1716250238656,-67654.98498061,0.00029,2]
[327600467,1716250238666,-1481.71970581,0.00029,2]
[327600468,1716250238676,-600.0,0.00029329,2]
[327600469,1716250238688,-157.85,0.00029521,2]
[327600470,1716250238698,-2342.31740382,0.0003,4]
[327600471,1716250238708,-5687.24550343,0.0003,2]
[327600472,1716250238719,-483.13349757,0.0003,2]
[327600473,1716250238730,-7171.84907073,0.0003,4]
[327600474,1716250238739,-19393.6161883,0.0003,4]
[327600475,1716250238749,-988.0,0.00030136,8]
[327600476,1716250238759,-14558.60369467,0.00030355,2]
[327600477,1716250238769,-1400.55165745,0.00031011,2]
[327600478,1716250238779,-400.0,0.00031043,2]
[327600479,1716250238789,-988.0,0.00031506,10]
[327600480,1716250238799,-160.84571027,0.00031578,2]
[327600481,1716250238809,-14558.60369467,0.00031718,3]
[327600482,1716250238819,-600.0,0.00032262,2]
[327600483,1716250238829,-150.0,0.00032333,120]
[327600484,1716250238839,-150.0,0.0003237,120]
[327600485,1716250238849,-157.85,0.00032388,2]
[327600486,1716250238866,-151.0,0.00032655,2]
[327600487,1716250238876,-210.92023676,0.00032805,5]
[327600488,1716250238903,-988.0,0.00032876,12]
[327600489,1716250238914,-13174.48387019,0.000329,30]
[327600490,1716250238924,-14558.60369467,0.00033082,5]
[327600491,1716250238935,-1400.55165745,0.00033233,2]
[327600492,1716250238946,-236.25,0.00033396,2]
[327600493,1716250238957,-539.09,0.0003349,10]
[327600494,1716250238967,-374.37,0.0003349,10]
[327600495,1716250238978,-729.4,0.000335,2]
[327600496,1716250238989,-729.4,0.000335,2]
[327600497,1716250239001,-729.4,0.000335,2]
[327600498,1716250239011,-729.4,0.000335,2]
[327600499,1716250239022,-729.4,0.000335,2]
[327600500,1716250239033,-729.4,0.000335,2]
[327600501,1716250239043,-729.4,0.000335,2]
[327600502,1716250239055,-729.4,0.000335,2]
[327600503,1716250239065,-729.4,0.000335,2]
[327600504,1716250239076,-729.4,0.000335,2]
[327600505,1716250239088,-729.4,0.000335,2]
[327600506,1716250239100,-729.4,0.000335,2]
[327600507,1716250239111,-729.4,0.000335,2]
[327600508,1716250239125,-729.4,0.000335,2]
[327600509,1716250239136,-729.4,0.000335,2]
[327600510,1716250239147,-729.4,0.000335,2]
[327600511,1716250239157,-729.4,0.000335,2]
[327600512,1716250239167,-729.4,0.000335,2]
[327600513,1716250239178,-729.4,0.000335,2]
[327600514,1716250239188,-729.4,0.000335,2]
[327600515,1716250239199,-1165.9925961,0.00033579,4]
[327600516,1716250239209,-239.77,0.00033771,120]
[327600517,1716250239220,-400.0,0.00033865,2]
[327600518,1716250239231,-988.0,0.00034246,14]
[327600519,1716250239241,-14558.60369467,0.00034445,6]
[327600520,1716250239252,-449.25,0.0003449,10]
[327600521,1716250239262,-410.71540116,0.000345,2]
[327600522,1716250239272,-1051.72963696,0.000348,2]
[327600523,1716250239283,-500.0,0.000348,2]
[327600524,1716250239292,-150.0,0.00034994,2]
[327600525,1716250239303,-150.0,0.00034994,2]
[327600526,1716250239314,-150.095,0.00034994,2]
[327600527,1716250239324,-279.65345884,0.00035,3]
[327600528,1716250239335,-600.0,0.00035195,2]
[327600529,1716250239346,-157.85,0.00035256,2]
[327600530,1716250239357,-1400.55165745,0.00035455,2]
[327600531,1716250239369,-988.0,0.00035616,16]
[327600532,1716250239379,-150.0,0.00035616,2]
[327600533,1716250239388,-14558.60369467,0.00035809,8]
[327600534,1716250239398,-150.0,0.00036061,120]
[327600536,1716250239814,-500.0,0.000363,2]
[327600537,1716250239847,-729.4,0.000363,3]
[327600538,1716250239857,-729.4,0.000363,3]
[327600539,1716250239867,-729.4,0.000363,3]
[327600540,1716250239886,-729.4,0.000363,3]
[327600541,1716250239896,-729.4,0.000363,3]
[327600543,1716250239906,-729.4,0.000363,3]
[327600544,1716250239916,-729.4,0.000363,3]
[327600545,1716250239926,-729.4,0.000363,3]
[327600546,1716250239936,-729.4,0.000363,3]
[327600547,1716250239946,-729.4,0.000363,3]
[327600548,1716250239956,-729.4,0.000363,3]
[327600549,1716250239966,-729.4,0.000363,3]
[327600550,1716250239976,-729.4,0.000363,3]
[327600551,1716250239986,-729.4,0.000363,3]
[327600552,1716250239995,-729.4,0.000363,3]
[327600553,1716250240005,-729.4,0.000363,3]
[327600554,1716250240015,-729.4,0.000363,3]
[327600555,1716250240024,-729.4,0.000363,3]
[327600556,1716250240034,-729.4,0.000363,3]
[327600557,1716250240044,-729.4,0.000363,3]
[327600558,1716250240054,-157.052108,0.00036348,40]
[327600559,1716250240064,-154.00992494,0.00036404,7]
[327600560,1716250240074,-500.0,0.00036437,10]
[327600561,1716250240084,-500.0,0.00036437,10]
[327600562,1716250240094,-500.0,0.00036437,10]
[327600563,1716250240104,-500.0,0.00036437,10]
[327600564,1716250240114,-150.0,0.00036554,2]
[327600565,1716250240125,-988.0,0.00036986,18]
[327600566,1716250240134,-152.84540226,0.00037,7]
[327600567,1716250240144,-308.28359419,0.00037162,120]
[327600568,1716250240155,-14558.60369467,0.00037173,10]
[327600569,1716250240164,-157.052108,0.00037348,42]
[327600570,1716250240174,-150.0,0.00037491,2]
[327600571,1716250240184,-177.37,0.00037641,120]
[327600572,1716250240195,-1400.55165745,0.00037678,2]
[327600573,1716250240205,-1442.56918503,0.000377,4]
[327600574,1716250240214,-3000.0,0.0003795,2]
[327600575,1716250240224,-1565.2946698,0.00037972,2]
[327600576,1716250240233,-150.0,0.00037994,2]
[327600577,1716250240243,-150.0,0.00037994,2]
[327600578,1716250240253,-157.54,0.00038027,30]
[327600579,1716250240262,-157.85,0.00038123,2]
[327600580,1716250240272,-157.052108,0.00038148,40]
[327600581,1716250240282,-150.0,0.00038234,2]
[327600582,1716250240292,-160.84571027,0.00038256,2]
[327600583,1716250240301,-406.57995452,0.00038256,2]
[327600584,1716250240311,-803.4632308,0.00038256,2]
[327600585,1716250240320,-1928.01228128,0.00038256,2]
[327600586,1716250240330,-150.0,0.00038282,2]
[327600587,1716250240339,-150.0,0.00038308,2]
[327600588,1716250240349,-150.0,0.00038345,2]
[327600589,1716250240358,-215.0593734,0.00038346,2]
[327600590,1716250240368,-157.052108,0.00038348,42]
[327600591,1716250240378,-123496.74459657,0.00038352,30]
[327600592,1716250240387,-155.0,0.00038352,2]
[327600593,1716250240397,-2000.0,0.00038352,2]
[327600594,1716250240406,-200.0,0.00038352,2]
[327600595,1716250240416,-200.0,0.00038352,2]
[327600596,1716250240425,-500.22706732,0.00038353,4]
[327600597,1716250240435,-614.45971442,0.00038353,4]
[327600598,1716250240444,-155.0,0.00038354,4]
[327600599,1716250240453,-325.76293882,0.00038354,4]
[327600600,1716250240462,-410.27026242,0.00038354,2]
[327600601,1716250240471,-181.93951843,0.00038354,4]
[327600602,1716250240481,-587.23728685,0.00038354,4]
[327600603,1716250240491,-1425.0735,0.00038355,4]
[327600604,1716250240506,-5000.0,0.00038355,7]
[327600605,1716250240516,-500.0,0.00038356,6]
[327600606,1716250240525,-500.0,0.00038356,6]
[327600607,1716250240535,-500.0,0.00038356,6]
[327600608,1716250240545,-500.0,0.00038356,6]
[327600609,1716250240554,-802.4,0.00038356,6]
[327600610,1716250240564,-500.0,0.00038356,6]
[327600611,1716250240573,-787.25,0.00038356,6]
[327600612,1716250240583,-916.89,0.00038356,6]
[327600613,1716250240595,-500.0,0.00038356,6]
[327600614,1716250240604,-877.09,0.00038356,6]
[327600615,1716250240614,-841.02,0.00038356,6]
[327600616,1716250240625,-500.0,0.00038356,6]
[327600617,1716250240635,-251.93542734,0.00038356,6]
[327600618,1716250240645,-1159.45,0.00038356,6]
[327600619,1716250240654,-687.62,0.00038356,6]
[327600620,1716250240663,-500.0,0.00038356,6]
[327600621,1716250240672,-528.6674005,0.00038356,6]
[327600622,1716250240681,-761.92,0.00038356,6]
[327600623,1716250240691,-500.0,0.00038356,6]
[327600624,1716250240700,-500.0,0.00038356,6]
[327600625,1716250240709,-500.0,0.00038356,6]
[327600626,1716250240719,-500.0,0.00038356,2]
[327600627,1716250240728,-768.1,0.00038356,6]
[327600628,1716250240738,-500.0,0.00038356,6]
[327600629,1716250240747,-760.8,0.00038356,6]
[327600630,1716250240757,-798.84,0.00038356,6]
[327600631,1716250240767,-1271.39,0.00038356,6]
[327600632,1716250240778,-500.0,0.00038356,6]
[327600633,1716250240788,-500.0,0.00038356,6]
[327600634,1716250240798,-500.0,0.00038356,6]
[327600635,1716250240808,-1150.12,0.00038356,6]
[327600636,1716250240818,-500.0,0.00038356,6]
[327600637,1716250240827,-500.0,0.00038356,6]
[327600638,1716250240837,-500.0,0.00038356,6]
[327600639,1716250240847,-336.50183162,0.00038356,6]
[327600640,1716250240857,-500.0,0.00038356,6]
[327600641,1716250240867,-500.0,0.00038356,6]
[327600642,1716250240876,-500.0,0.00038356,6]
[327600643,1716250240885,-600.89,0.00038356,6]
[327600644,1716250240895,-591.5138566,0.00038356,6]
[327600645,1716250240904,-671.68,0.00038356,6]
[327600646,1716250240913,-500.0,0.00038356,6]
[327600647,1716250240923,-500.0,0.00038356,6]
[327600648,1716250240932,-500.0,0.00038356,6]
[327600649,1716250240941,-500.0,0.00038356,6]
[327600650,1716250240951,-500.0,0.00038356,6]
[327600651,1716250240960,-748.5,0.00038356,6]
[327600652,1716250240970,-500.0,0.00038356,6]
[327600653,1716250240979,-500.0,0.00038356,6]
[327600654,1716250240988,-629.9,0.00038356,6]
[327600655,1716250240998,-500.0,0.00038356,6]
[327600656,1716250241008,-500.0,0.00038356,6]
[327600657,1716250241017,-528.17,0.00038356,6]
[327600658,1716250241027,-500.0,0.00038356,6]
[327600659,1716250241037,-500.0,0.00038356,6]
[327600660,1716250241047,-667.89,0.00038356,6]
[327600661,1716250241056,-500.0,0.00038356,6]
[327600662,1716250241066,-500.0,0.00038356,6]
[327600663,1716250241076,-500.0,0.00038356,6]
[327600664,1716250241085,-500.0,0.00038356,6]
[327600665,1716250241095,-500.0,0.00038356,6]
[327600666,1716250241105,-660.78,0.00038356,6]
[327600667,1716250241114,-500.0,0.00038356,6]
[327600668,1716250241125,-500.0,0.00038356,6]
[327600669,1716250241135,-739.32,0.00038356,6]
[327600670,1716250241145,-579.28235315,0.00038356,6]
[327600671,1716250241154,-522.49212849,0.00038356,6]
[327600672,1716250241164,-500.0,0.00038356,6]
[327600673,1716250241173,-500.0,0.00038356,6]
[327600674,1716250241183,-741.1,0.00038356,6]
[327600675,1716250241192,-500.0,0.00038356,6]
[327600676,1716250241202,-500.0,0.00038356,6]
[327600677,1716250241211,-500.0,0.00038356,6]
[327600678,1716250241220,-500.0,0.00038356,6]
[327600679,1716250241230,-500.0,0.00038356,6]
[327600680,1716250241239,-500.0,0.00038356,6]
[327600681,1716250241248,-500.0,0.00038356,2]
[327600682,1716250241258,-500.0,0.00038356,6]
[327600683,1716250241267,-500.0,0.00038356,6]
[327600684,1716250241276,-500.0,0.00038356,6]
[327600685,1716250241286,-500.0,0.00038356,6]
[327600686,1716250241295,-500.0,0.00038356,6]
[327600687,1716250241304,-500.0,0.00038356,6]
[327600688,1716250241314,-500.0,0.00038356,6]
[327600689,1716250241324,-673.13,0.00038356,6]
[327600690,1716250241333,-612.37,0.00038356,6]
[327600691,1716250241343,-635.99,0.00038356,6]
[327600692,1716250241352,-500.0,0.00038356,6]
[327600693,1716250241361,-500.0,0.00038356,6]
[327600694,1716250241372,-633.07,0.00038356,6]
[327600695,1716250241381,-500.0,0.00038356,6]
[327600696,1716250241391,-500.0,0.00038356,6]
[327600697,1716250241400,-541.43,0.00038356,6]
[327600698,1716250241409,-324.07,0.00038356,6]
[327600699,1716250241419,-788.52,0.00038356,6]
[327600700,1716250241428,-698.38,0.00038356,6]
[327600701,1716250241438,-500.0,0.00038356,6]
[327600702,1716250241448,-500.0,0.00038356,6]
[327600703,1716250241457,-500.0,0.00038356,6]
[327600704,1716250241467,-500.0,0.00038356,6]
[327600705,1716250241476,-500.0,0.00038356,6]
[327600706,1716250241486,-500.0,0.00038356,6]
[327600707,1716250241497,-500.0,0.00038356,6]
[327600708,1716250241509,-500.0,0.00038356,6]
[327600709,1716250241521,-500.0,0.00038356,6]
[327600710,1716250241531,-500.0,0.00038356,6]
[327600711,1716250241544,-744.98,0.00038356,6]
[327600712,1716250241554,-500.0,0.00038356,6]
[327600713,1716250241565,-500.0,0.00038356,6]
[327600714,1716250241574,-500.0,0.00038356,6]
[327600715,1716250241583,-500.0,0.00038356,6]
[327600716,1716250241595,-897.03,0.00038356,6]
[327600717,1716250241604,-500.0,0.00038356,6]
[327600718,1716250241614,-500.0,0.00038356,6]
[327600719,1716250241625,-617.41,0.00038356,6]
[327600720,1716250241636,-524.99,0.00038356,6]
[327600721,1716250241646,-464.10690437,0.00038356,6]
[327600722,1716250241656,-500.0,0.00038356,6]
[327600723,1716250241665,-500.0,0.00038356,6]
[327600724,1716250241677,-500.0,0.00038356,6]
[327600725,1716250241687,-500.0,0.00038356,6]
[327600726,1716250241697,-500.0,0.00038356,6]
[327600727,1716250241706,-500.0,0.00038356,6]
[327600728,1716250241715,-664.5,0.00038356,6]
[327600729,1716250241724,-500.0,0.00038356,6]
[327600730,1716250241733,-617.46,0.00038356,6]
[327600732,1716250241743,-235.32440867,0.00038356,6]
[327600733,1716250241753,-500.0,0.00038356,6]
[327600735,1716250241762,-500.0,0.00038356,6]
[327600736,1716250241771,-500.0,0.00038356,6]
[327600737,1716250241781,-527.45,0.00038356,6]
[327600738,1716250241790,-533.38,0.00038356,6]
[327600740,1716250241799,-500.0,0.00038356,6]
[327600741,1716250241808,-500.0,0.00038356,6]
[327600742,1716250241818,-500.0,0.00038356,6]
[327600744,1716250241826,-500.0,0.00038356,6]
[327600745,1716250241836,-500.0,0.00038356,6]
[327600746,1716250241845,-500.0,0.00038356,6]
[327600748,1716250241854,-500.0,0.00038356,6]
[327600749,1716250241863,-500.0,0.00038356,6]
[327600750,1716250241873,-569.38,0.00038356,6]
[327600752,1716250241882,-500.0,0.00038356,6]
[327600753,1716250241892,-500.0,0.00038356,6]
[327600754,1716250241901,-1102.93,0.00038356,6]
[327600756,1716250241911,-1035.45,0.00038356,6]
[327600757,1716250241920,-500.0,0.00038356,6]
[327600759,1716250241929,-500.0,0.00038356,6]
[327600760,1716250241939,-500.0,0.00038356,6]
[327600761,1716250241948,-500.0,0.00038356,6]
[327600763,1716250241958,-500.0,0.00038356,6]
[327600764,1716250241967,-500.0,0.00038356,6]
[327600766,1716250241977,-500.0,0.00038356,6]
[327600767,1716250241986,-500.0,0.00038356,6]
[327600768,1716250241996,-534.83,0.00038356,6]
[327600770,1716250242006,-843.24,0.00038356,6]
[327600771,1716250242015,-500.0,0.00038356,6]
[327600772,1716250242025,-500.0,0.00038356,6]
[327600774,1716250242034,-500.0,0.00038356,6]
[327600775,1716250242043,-500.0,0.00038356,6]
[327600777,1716250242053,-500.0,0.00038356,6]
[327600778,1716250242062,-560.59,0.00038356,6]
[327600779,1716250242071,-500.0,0.00038356,6]
[327600781,1716250242081,-500.0,0.00038356,6]
[327600782,1716250242090,-500.0,0.00038356,6]
[327600784,1716250242099,-568.07,0.00038356,6]
[327600786,1716250242107,-529.42,0.00038356,6]
[327600787,1716250242117,-500.0,0.00038356,6]
[327600789,1716250242128,-500.0,0.00038356,6]
[327600790,1716250242137,-500.0,0.00038356,6]
[327600791,1716250242146,-500.0,0.00038356,6]
[327600793,1716250242155,-500.0,0.00038356,6]
[327600794,1716250242164,-500.0,0.00038356,6]
[327600796,1716250242175,-500.0,0.00038356,6]
[327600802,1716250242264,-528.04,0.00038356,6]
[327600804,1716250242274,-500.0,0.00038356,6]
[327600805,1716250242283,-500.0,0.00038356,6]
[327600807,1716250242292,-500.0,0.00038356,6]
[327600808,1716250242301,-500.0,0.00038356,6]
[327600809,1716250242311,-500.0,0.00038356,6]
[327600810,1716250242320,-500.0,0.00038356,6]
[327600811,1716250242329,-2000.0,0.00038356,30]
[327600812,1716250242338,-500.0,0.00038356,6]
[327600813,1716250242347,-911.67,0.00038356,6]
[327600814,1716250242357,-122.40655947,0.00038356,6]
[327600881,1716250243562,-377.59344053,0.00038356,6]
[327600883,1716250243571,-500.0,0.00038356,6]
[327600884,1716250243580,-500.0,0.00038356,6]
[327600885,1716250243591,-500.0,0.00038356,6]
[327600887,1716250243600,-500.0,0.00038356,6]
[327600888,1716250243610,-500.0,0.00038356,6]
[327600890,1716250243620,-298.22820515,0.00038356,6]
[327600892,1716250243663,-209.71010609,0.00038356,6]
[327600894,1716250243673,-500.0,0.00038356,6]
[327600895,1716250243682,-838.37,0.00038356,6]
[327600897,1716250243692,-500.0,0.00038356,6]
[327600898,1716250243701,-500.0,0.00038356,6]
[327600899,1716250243712,-500.0,0.00038356,6]
[327600901,1716250243721,-1681.51,0.00038356,6]